fUST/lending_fUST_20250530
["ID","MTS","AMOUNT","RATE_DAILY","PERIOD"]
[362958619,1748536235375,-430.0,0.00019178,2]
[362958620,1748536235384,-430.0,0.00019178,2]
[362958621,1748536235394,-430.0,0.00019178,2]
[362958622,1748536235404,-430.0,0.00019178,2]
[362958623,1748536235413,-430.0,0.00019178,2]
[362958624,1748536235423,-341.67097342,0.00019178,2]
[362958625,1748536235432,-430.0,0.00019178,2]
[362958626,1748536235441,-430.0,0.00019178,2]
[362958627,1748536235450,-430.0,0.00019178,2]
[362958628,1748536235460,-430.0,0.00019178,2]
[362958629,1748536235470,-500.0,0.00019178,2]
[362958630,1748536235479,-430.0,0.00019178,2]
[362958631,1748536235488,-430.0,0.00019178,2]
[362958632,1748536235498,-430.0,0.00019178,2]
[362958633,1748536235507,-1000.0,0.00019178,2]
[362958634,1748536235517,-500.0,0.00019178,2]
[362958635,1748536235526,-370.0,0.00019178,2]
[362958636,1748536235535,-430.0,0.00019178,2]
[362958637,1748536235544,-430.0,0.00019178,2]
[362958638,1748536235554,-430.0,0.00019178,2]
[362958639,1748536235563,-430.0,0.00019178,2]
[362958640,1748536235572,-430.0,0.00019178,2]
[362958641,1748536235582,-430.0,0.00019178,2]
[362958642,1748536235592,-430.0,0.00019178,2]
[362958643,1748536235601,-525.57,0.00019178,2]
[362958644,1748536235610,-400.0,0.00019178,2]
[362958645,1748536235619,-430.0,0.00019178,2]
[362958646,1748536235628,-430.0,0.00019178,2]
[362958647,1748536235637,-430.0,0.00019178,2]
[362958648,1748536235646,-430.0,0.00019178,2]
[362958649,1748536235655,-430.0,0.00019178,2]
[362958650,1748536235664,-430.0,0.00019178,2]
[362958651,1748536235674,-392.16119654,0.00019178,2]
[362958652,1748536235683,-403.59174653,0.00019178,2]
[362958653,1748536235692,-430.0,0.00019178,2]
[362958654,1748536235700,-430.0,0.00019178,2]
[362958655,1748536235709,-233.04985623,0.00019178,2]
[362958656,1748536235719,-430.0,0.00019178,2]
[362958657,1748536235729,-501.77666421,0.00019178,2]
[362958658,1748536235739,-430.0,0.00019178,2]
[362958659,1748536235750,-430.0,0.00019178,2]
[362958660,1748536235759,-500.0,0.00019178,2]
[362958661,1748536235768,-430.0,0.00019178,2]
[362958662,1748536235777,-400.0,0.00019178,2]
[362958663,1748536235787,-500.0,0.00019178,2]
[362958664,1748536235796,-400.0,0.00019178,2]
[362958665,1748536235806,-430.0,0.00019178,2]
[362958666,1748536235815,-430.0,0.00019178,2]
[362958667,1748536235825,-430.0,0.00019178,2]
[362958668,1748536235836,-430.0,0.00019178,2]
[362958669,1748536235845,-430.0,0.00019178,2]
[362958670,1748536235855,-430.0,0.00019178,2]
[362958671,1748536235864,-400.0,0.00019178,2]
[362958672,1748536235874,-430.0,0.00019178,2]
[362958673,1748536235883,-430.0,0.00019178,2]
[362958674,1748536235891,-400.0,0.00019178,2]
[362958675,1748536235901,-430.0,0.00019178,2]
[362958676,1748536235913,-203.21947115,0.00019178,2]
[362958677,1748536235922,-430.0,0.00019178,2]
[362958678,1748536235932,-574.54,0.00019178,2]
[362958679,1748536235942,-430.0,0.00019178,2]
[362958680,1748536235951,-430.0,0.00019178,2]
[362958681,1748536235961,-430.0,0.00019178,2]
[362958682,1748536235971,-430.0,0.00019178,2]
[362958683,1748536235982,-430.0,0.00019178,2]
[362958684,1748536235991,-430.0,0.00019178,2]
[362958685,1748536236001,-430.0,0.00019178,2]
[362958686,1748536236011,-430.0,0.00019178,2]
[362958687,1748536236020,-500.0,0.00019178,2]
[362958688,1748536236029,-430.0,0.00019178,2]
[362958689,1748536236039,-430.0,0.00019178,2]
[362958690,1748536236048,-430.0,0.00019178,2]
[362958691,1748536236057,-430.0,0.00019178,2]
[362958692,1748536236067,-430.0,0.00019178,2]
[362958693,1748536236077,-216.67981002,0.00019178,2]
[362958694,1748536236088,-473.17,0.00019178,2]
[362958695,1748536236098,-430.0,0.00019178,2]
[362958696,1748536236107,-430.0,0.00019178,2]
[362958697,1748536236119,-430.0,0.00019178,2]
[362958698,1748536236128,-478.09028257,0.00019178,2]
[362958699,1748536236137,-430.0,0.00019178,2]
[362958700,1748536236147,-430.0,0.00019178,2]
[362958701,1748536236156,-400.0,0.00019178,2]
[362958702,1748536236167,-430.0,0.00019178,2]
[362958703,1748536236177,-430.0,0.00019178,2]
[362958704,1748536236186,-430.0,0.00019178,2]
[362958705,1748536236197,-510.46,0.00019178,2]
[362958706,1748536236206,-430.0,0.00019178,2]
[362958707,1748536236216,-430.0,0.00019178,2]
[362958708,1748536236226,-430.0,0.00019178,2]
[362958709,1748536236235,-430.0,0.00019178,2]
[362958710,1748536236245,-537.55,0.00019178,2]
[362958711,1748536236255,-430.0,0.00019178,2]
[362958712,1748536236267,-430.0,0.00019178,2]
[362958713,1748536236277,-430.0,0.00019178,2]
[362958714,1748536236287,-430.0,0.00019178,2]
[362958715,1748536236297,-500.77010991,0.00019178,2]
[362958716,1748536236307,-430.0,0.00019178,2]
[362958717,1748536236317,-430.0,0.00019178,2]
[362958718,1748536236331,-430.0,0.00019178,2]
[362958719,1748536236340,-430.0,0.00019178,2]
[362958720,1748536236350,-400.0,0.00019178,2]
[362958721,1748536236360,-430.0,0.00019178,2]
[362958722,1748536236369,-430.0,0.00019178,2]
[362958723,1748536236380,-430.0,0.00019178,2]
[362958724,1748536236390,-430.0,0.00019178,2]
[362958725,1748536236399,-430.0,0.00019178,2]
[362958726,1748536236408,-430.0,0.00019178,2]
[362958727,1748536236418,-380.96987757,0.00019178,2]
[362958728,1748536236427,-430.0,0.00019178,2]
[362958729,1748536236437,-497.66,0.00019178,2]
[362958730,1748536236447,-506.15363087,0.00019178,2]
[362958731,1748536236456,-430.0,0.00019178,2]
[362958732,1748536236465,-430.0,0.00019178,2]
[362958733,1748536236475,-160.0,0.00019178,2]
[362958734,1748536236485,-430.0,0.00019178,2]
[362958735,1748536236494,-400.0,0.00019178,2]
[362958736,1748536236504,-430.0,0.00019178,2]
[362958737,1748536236514,-430.0,0.00019178,2]
[362958738,1748536236523,-400.0,0.00019178,2]
[362958739,1748536236532,-365.38236882,0.00019178,2]
[362958740,1748536236542,-430.0,0.00019178,2]
[362958741,1748536236551,-518.33,0.00019178,2]
[362958742,1748536236652,-400.0,0.00019178,2]
[362958743,1748536236672,-479.59268791,0.00019178,2]
[362958744,1748536236682,-430.0,0.00019178,2]
[362958745,1748536236691,-430.0,0.00019178,2]
[362958746,1748536236700,-430.0,0.00019178,2]
[362958747,1748536236709,-512.87,0.00019178,2]
[362958748,1748536236719,-430.0,0.00019178,2]
[362958749,1748536236728,-430.0,0.00019178,2]
[362958750,1748536236737,-430.0,0.00019178,2]
[362958751,1748536236746,-430.0,0.00019178,2]
[362958752,1748536236755,-430.0,0.00019178,2]
[362958753,1748536236764,-430.0,0.00019178,2]
[362958754,1748536236774,-400.0,0.00019178,2]
[362958755,1748536236783,-514.39836032,0.00019178,2]
[362958756,1748536236793,-400.0,0.00019178,2]
[362958757,1748536236802,-400.0,0.00019178,2]
[362958758,1748536236812,-523.47662418,0.00019178,2]
[362958759,1748536236821,-430.0,0.00019178,2]
[362958760,1748536236832,-500.0,0.00019178,2]
[362958761,1748536236840,-400.0,0.00019178,2]
[362958762,1748536236850,-500.76749215,0.00019178,2]
[362958763,1748536236860,-430.0,0.00019178,2]
[362958764,1748536236869,-430.0,0.00019178,2]
[362958765,1748536236878,-430.0,0.00019178,2]
[362958766,1748536236887,-400.0,0.00019178,2]
[362958767,1748536236896,-507.98153235,0.00019178,2]
[362958768,1748536236905,-157.29330944,0.00019178,2]
[362958769,1748536236915,-430.0,0.00019178,2]
[362958770,1748536236924,-500.0,0.00019178,2]
[362958771,1748536236933,-500.0,0.00019178,2]
[362958772,1748536236942,-430.0,0.00019178,2]
[362958773,1748536236953,-500.0,0.00019178,2]
[362958774,1748536236962,-500.0,0.00019178,2]
[362958775,1748536236972,-500.0,0.00019178,2]
[362958776,1748536236981,-500.0,0.00019178,2]
[362958777,1748536236991,-500.0,0.00019178,2]
[362958778,1748536237000,-500.0,0.00019178,2]
[362958779,1748536237010,-430.0,0.00019178,2]
[362958780,1748536237019,-500.0,0.00019178,2]
[362958781,1748536237029,-400.0,0.00019178,2]
[362958782,1748536237038,-430.0,0.00019178,2]
[362958783,1748536237048,-400.0,0.00019178,2]
[362958784,1748536237057,-430.0,0.00019178,2]
[362958785,1748536237067,-430.0,0.00019178,2]
[362958786,1748536237081,-430.0,0.00019178,2]
[362958787,1748536237091,-430.0,0.00019178,2]
[362958788,1748536237100,-400.0,0.00019178,2]
[362958789,1748536237109,-186.778723,0.00019178,2]
[362958790,1748536237119,-500.0,0.00019451,2]
[362958791,1748536237129,-500.0,0.00019451,2]
[362958792,1748536237139,-430.0,0.00019452,2]
[362958793,1748536237148,-365.48,0.00019452,2]
[362958794,1748536237159,-430.0,0.00019452,2]
[362958795,1748536237169,-227.87152623,0.00019452,2]
[362958796,1748536237178,-430.0,0.00019452,2]
[362958797,1748536237187,-430.0,0.00019452,2]
[362958798,1748536237198,-553.31945042,0.00019452,2]
[362958799,1748536237207,-251.01915026,0.00019452,2]
[362958800,1748536237217,-430.0,0.00019452,2]
[362958801,1748536237227,-430.0,0.00019452,2]
[362958802,1748536237236,-510.0,0.00019452,2]
[362958803,1748536237246,-430.0,0.00019452,2]
[362958804,1748536237255,-430.0,0.00019452,2]
[362958805,1748536237265,-430.0,0.00019452,2]
[362958807,1748536237275,-430.0,0.00019452,2]
[362958808,1748536237285,-430.0,0.00019452,2]
[362958810,1748536237294,-430.0,0.00019452,2]
[362958812,1748536237303,-430.0,0.00019452,2]
[362958814,1748536237312,-430.0,0.00019452,2]
[362958816,1748536237321,-430.0,0.00019452,2]
[362958817,1748536237332,-430.0,0.00019452,2]
[362958818,1748536237341,-454.26086064,0.00019452,2]
[362958820,1748536237350,-430.0,0.00019452,2]
[362958821,1748536237360,-430.0,0.00019452,2]
[362958822,1748536237369,-269.76560823,0.00019452,2]
[362958823,1748536237379,-466.06,0.00019452,2]
[362958824,1748536237388,-430.0,0.00019452,2]
[362958825,1748536237398,-430.0,0.00019452,2]
[362958826,1748536237408,-430.0,0.00019452,2]
[362958827,1748536237417,-331.62190277,0.00019452,2]
[362958828,1748536237426,-430.0,0.00019452,2]
[362958829,1748536237436,-164.73649913,0.00019452,2]
[362958830,1748536237445,-381.61466394,0.00019452,2]
[362958831,1748536237455,-445.82,0.00019452,2]
[362958833,1748536237464,-430.0,0.00019452,2]
[362958835,1748536237473,-325.93,0.00019452,2]
[362958837,1748536237482,-430.0,0.00019452,2]
[362958839,1748536237491,-430.0,0.00019452,2]
[362958841,1748536237503,-430.0,0.00019452,2]
[362958843,1748536237512,-430.0,0.00019452,2]
[362958845,1748536237521,-430.0,0.00019452,2]
[362958847,1748536237530,-536.44,0.00019452,2]
[362958849,1748536237539,-430.0,0.00019452,2]
[362958851,1748536237548,-430.0,0.00019452,2]
[362958854,1748536237558,-430.0,0.00019452,2]
[362958855,1748536237568,-430.0,0.00019452,2]
[362958857,1748536237577,-430.0,0.00019452,2]
[362958860,1748536237589,-515.98,0.00019452,2]
[362958862,1748536237599,-430.0,0.00019452,2]
[362958864,1748536237609,-260.02,0.00019452,2]
[362958866,1748536237618,-430.0,0.00019452,2]
[362958868,1748536237627,-430.0,0.00019452,2]
[362958870,1748536237636,-158.66,0.00019452,2]
[362958871,1748536237645,-430.0,0.00019452,2]
[362958873,1748536237654,-430.0,0.00019452,2]
[362958875,1748536237663,-504.13,0.00019452,2]
[362958877,1748536237673,-409.5,0.00019452,2]
[362958879,1748536237681,-430.0,0.00019452,2]
[362958881,1748536237690,-361.27,0.00019452,2]
[362958883,1748536237701,-430.0,0.00019452,2]
[362958885,1748536237710,-430.0,0.00019452,2]
[362958887,1748536237720,-362.39,0.00019452,2]
[362958889,1748536237729,-171.96,0.00019452,2]
[362958891,1748536237738,-430.0,0.00019452,2]
[362958893,1748536237747,-438.36,0.00019452,2]
[362958896,1748536237757,-550.38,0.00019452,2]
[362958898,1748536237767,-430.0,0.00019452,2]
[362958899,1748536237776,-430.0,0.00019452,2]
[362958902,1748536237786,-430.0,0.00019452,2]
[362958903,1748536237795,-262.17,0.00019452,2]
[362958905,1748536237804,-430.0,0.00019452,2]
[362958907,1748536237814,-430.0,0.00019452,2]
[362958909,1748536237824,-430.0,0.00019452,2]
[362958911,1748536237834,-430.0,0.00019452,2]
[362958913,1748536237843,-430.0,0.00019452,2]
[362958915,1748536237853,-430.0,0.00019452,2]
[362958918,1748536237863,-71400.00297983,0.000195,2]
[362958932,1748536237979,-1506.69158,0.00018795,2]
[362958934,1748536237991,-3493.30842,0.00018795,2]
[362958937,1748536238003,-299.44363022,0.00019178,2]
[362958939,1748536238016,-101361.39426977,0.000195,2]
[362958941,1748536238029,-278.95888251,0.00019626,2]
[362958944,1748536238042,-247.22,0.00019724,2]
[362958946,1748536238055,-500.0,0.00019725,2]
[362958948,1748536238066,-430.0,0.00019726,2]
[362958951,1748536238079,-189.22701946,0.00019726,2]
[362958953,1748536238091,-430.0,0.00019726,2]
[362958955,1748536238103,-430.0,0.00019726,2]
[362958957,1748536238115,-430.0,0.00019726,2]
[362958959,1748536238128,-430.0,0.00019726,2]
[362958962,1748536238140,-430.0,0.00019726,2]
[362958964,1748536238151,-430.0,0.00019726,2]
[362958966,1748536238164,-430.0,0.00019726,2]
[362958968,1748536238175,-430.0,0.00019726,2]
[362958971,1748536238187,-445.82,0.00019726,2]
[362958973,1748536238199,-430.0,0.00019726,2]
[362958975,1748536238211,-430.0,0.00019726,2]
[362958978,1748536238223,-288.01,0.00019726,2]
[362958980,1748536238235,-430.0,0.00019726,2]
[362958982,1748536238247,-430.0,0.00019726,2]
[362958984,1748536238258,-430.0,0.00019726,2]
[362958987,1748536238270,-430.0,0.00019726,2]
[362958989,1748536238280,-424.17,0.00019726,2]
[362958991,1748536238291,-306.82,0.00019726,2]
[362958993,1748536238303,-243.13,0.00019726,2]
[362958996,1748536238315,-326.72,0.00019726,2]
[362958998,1748536238327,-430.0,0.00019726,2]
[362959000,1748536238339,-430.0,0.00019726,2]
[362959002,1748536238350,-430.0,0.00019726,2]
[362959004,1748536238360,-256.59,0.00019726,2]
[362959006,1748536238369,-207.64,0.00019726,2]
[362959008,1748536238380,-430.0,0.00019726,2]
[362959011,1748536238391,-430.0,0.00019726,2]
[362959013,1748536238400,-430.0,0.00019726,2]
[362959016,1748536238412,-430.0,0.00019726,2]
[362959018,1748536238425,-500.0,0.00019808,2]
[362959021,1748536238437,-500.0,0.00019808,2]
[362959023,1748536238449,-167.87049797,0.00019808,2]
[362959025,1748536238461,-500.0,0.00019808,2]
[362959027,1748536238473,-153.01897109,0.00019808,2]
[362959030,1748536238485,-151.0,0.00019808,2]
[362959032,1748536238497,-151.0,0.00019808,2]
[362959034,1748536238508,-169.78580715,0.00019808,2]
[362959037,1748536238521,-205.09207687,0.00019808,2]
[362959039,1748536238531,-500.0,0.00019835,2]
[362959041,1748536238541,-500.0,0.00019835,2]
[362959043,1748536238551,-500.0,0.00019835,2]
[362959045,1748536238560,-279.01,0.00019863,2]
[362959047,1748536238570,-500.0,0.00019863,2]
[362959049,1748536238582,-500.0,0.00019863,2]
[362959052,1748536238593,-500.0,0.0001989,2]
[362959054,1748536238605,-500.0,0.0001989,2]
[362959056,1748536238619,-256.91248319,0.000199,2]
[362959059,1748536238631,-183.07715907,0.00019918,2]
[362959061,1748536238641,-500.0,0.00019918,2]
[362959063,1748536238651,-500.0,0.00019945,2]
[362959065,1748536238662,-500.0,0.00019972,2]
[362959067,1748536238672,-500.0,0.0002,2]
[362959069,1748536238683,-436.67,0.0002,2]
[362959071,1748536238695,-430.0,0.0002,2]
[362959073,1748536238705,-430.0,0.0002,2]
[362959076,1748536238715,-430.0,0.0002,2]
[362959078,1748536238725,-413.42105719,0.0002,2]
[362959080,1748536238735,-405.61,0.0002,2]
[362959082,1748536238746,-430.0,0.0002,2]
[362959084,1748536238756,-445.82,0.0002,2]
[362959086,1748536238766,-430.0,0.0002,2]
[362959088,1748536238777,-430.0,0.0002,2]
[362959090,1748536238788,-430.0,0.0002,2]
[362959093,1748536238799,-430.0,0.0002,2]
[362959095,1748536238809,-464.53,0.0002,2]
[362959097,1748536238820,-430.0,0.0002,2]
[362959099,1748536238832,-475.68,0.0002,2]
[362959101,1748536238843,-430.0,0.0002,2]
[362959103,1748536238854,-430.0,0.0002,2]
[362959106,1748536238865,-430.0,0.0002,2]
[362959108,1748536238875,-430.0,0.0002,2]
[362959110,1748536238887,-430.0,0.0002,2]
[362959112,1748536238898,-430.0,0.0002,2]
[362959114,1748536238908,-500.0,0.00020027,2]
[362959116,1748536238919,-160.0,0.00020028,2]
[362959118,1748536238929,-212.70147903,0.00020028,2]
[362959120,1748536238940,-160.0,0.00020041,2]
[362959123,1748536238951,-160.0,0.00020041,2]
[362959125,1748536238962,-160.0,0.00020041,2]
[362959127,1748536238973,-503.09515564,0.00020055,2]
[362959129,1748536238983,-293.740041,0.00020187,2]
[362959131,1748536238997,-500.0,0.00020272,2]
[362959134,1748536239008,-350.24566025,0.00020273,2]
[362959136,1748536239019,-430.0,0.00020273,2]
[362959138,1748536239029,-430.0,0.00020273,2]
[362959140,1748536239039,-445.82,0.00020273,2]
[362959142,1748536239050,-553.92,0.00020273,2]
[362959144,1748536239060,-430.0,0.00020273,2]
[362959146,1748536239071,-430.0,0.00020273,2]
[362959148,1748536239085,-430.0,0.00020273,2]
[362959150,1748536239096,-430.0,0.00020273,2]
[362959153,1748536239107,-430.0,0.00020273,2]
[362959155,1748536239119,-430.0,0.00020273,2]
[362959157,1748536239129,-442.24,0.00020273,2]
[362959159,1748536239140,-430.0,0.00020273,2]
[362959161,1748536239152,-430.0,0.00020273,2]
[362959163,1748536239163,-430.0,0.00020273,2]
[362959166,1748536239174,-430.0,0.00020547,2]
[362959168,1748536239185,-430.0,0.00020547,2]
[362959170,1748536239196,-445.82,0.00020547,2]
[362959172,1748536239207,-430.0,0.00020547,2]
[362959174,1748536239218,-430.0,0.00020547,2]
[362959176,1748536239230,-430.0,0.00020547,2]
[362959179,1748536239241,-430.0,0.00020547,2]
[362959181,1748536239252,-430.0,0.00020547,2]
[362959183,1748536239263,-308.77,0.00020547,2]
[362959185,1748536239273,-430.0,0.00020547,2]
[362959187,1748536239282,-430.0,0.00020547,2]
[362959189,1748536239292,-430.0,0.00020547,2]
[362959191,1748536239301,-206.817,0.00020556,2]
[362959193,1748536239311,-527.61345246,0.0002082,2]
[362959195,1748536239320,-4505.8,0.00020821,2]
[362959197,1748536239329,-417.0,0.00020821,2]
[362959199,1748536239340,-314.51,0.00020821,2]
[362959201,1748536239349,-445.82,0.00020821,2]
[362959203,1748536239358,-430.0,0.00020821,2]
[362959205,1748536239367,-430.0,0.00020821,2]
[362959207,1748536239376,-430.0,0.00020821,2]
[362959209,1748536239386,-430.0,0.00020821,2]
[362959211,1748536239395,-430.0,0.00020821,2]
[362959213,1748536239405,-430.0,0.00020821,2]
[362959216,1748536239414,-155.81,0.00020821,2]
[362959217,1748536239424,-430.0,0.00020821,2]
[362959219,1748536239434,-278.95888249,0.00020945,2]
[362959221,1748536239444,-430.0,0.00020999,2]
[362959223,1748536239453,-430.0,0.00020999,2]
[362959225,1748536239464,-430.0,0.00020999,2]
[362959245,1748536239630,-16795.96416675,0.00021,2]
[362959247,1748536239641,-445.82,0.00021095,2]
[362959249,1748536239650,-430.0,0.00021095,2]
[362959251,1748536239660,-430.0,0.00021095,2]
[362959253,1748536239669,-430.0,0.00021095,2]
[362959255,1748536239678,-507.09,0.00021095,2]
[362959257,1748536239687,-430.0,0.00021095,2]
[362959259,1748536239696,-198.85,0.00021095,2]
[362959261,1748536239705,-499.15,0.00021095,2]
[362959263,1748536239714,-600.0,0.0002116,2]
[362959264,1748536239724,-500.0,0.00021164,2]
[362959266,1748536239733,-430.0,0.00021273,2]
[362959268,1748536239742,-430.0,0.00021273,2]
[362959270,1748536239751,-445.82,0.00021369,2]
[362959272,1748536239760,-430.0,0.00021369,2]
[362959274,1748536239769,-430.0,0.00021369,2]
[362959276,1748536239778,-430.0,0.00021369,2]
[362959278,1748536239787,-430.0,0.00021369,2]
[362959280,1748536239796,-20956.8821412,0.0002141,2]
[362959282,1748536239805,-430.0,0.00021547,2]
[362959284,1748536239814,-430.0,0.00021547,2]
[362959286,1748536239823,-445.82,0.00021643,2]
[362959288,1748536239835,-430.0,0.00021643,2]
[362959290,1748536239845,-430.0,0.00021643,2]
[362959292,1748536239854,-430.0,0.00021643,2]
[362959294,1748536239863,-430.0,0.00021643,2]
[362959296,1748536239872,-1200.0,0.00021708,2]
[362959298,1748536239881,-430.0,0.00021821,2]
[362959300,1748536239891,-430.0,0.00021821,2]
[362959301,1748536239900,-160.0,0.00021916,2]
[362959303,1748536239909,-445.82,0.00021917,2]
[362959305,1748536239918,-430.0,0.00021917,2]
[362959307,1748536239927,-430.0,0.00021917,2]
[362959309,1748536239937,-430.0,0.00021917,2]
[362959311,1748536239947,-346.46,0.00021917,2]
[362959313,1748536239956,-500.0,0.00021918,2]
[362959315,1748536239965,-391.15561308,0.00021918,2]
[362959317,1748536239975,-500.0,0.00021918,2]
[362959320,1748536239984,-500.0,0.00021918,2]
[362959323,1748536239993,-500.0,0.00021918,2]
[362959326,1748536240003,-371.71,0.00022,7]
[362959328,1748536240012,-6869.42,0.00022,2]
[362959331,1748536240021,-34113.82,0.00022,7]
[362959334,1748536240030,-787.46,0.00022,7]
[362959336,1748536240039,-430.0,0.00022095,2]
[362959338,1748536240048,-430.0,0.00022095,2]
[362959339,1748536240058,-445.82,0.00022191,2]
[362959341,1748536240067,-430.0,0.00022191,2]
[362959343,1748536240079,-430.0,0.00022191,2]
[362959345,1748536240089,-430.0,0.00022191,2]
[362959347,1748536240098,-1584.09246953,0.00022256,2]
[362959349,1748536240108,-278.95888249,0.00022263,2]
[362959351,1748536240119,-430.0,0.00022369,2]
[362959353,1748536240129,-430.0,0.00022369,2]
[362959355,1748536240139,-256.91248318,0.000224,7]
[362959357,1748536240148,-720.0,0.00022438,3]
[362959359,1748536240158,-720.0,0.00022438,3]
[362959361,1748536240170,-720.0,0.00022438,3]
[362959363,1748536240179,-328.95548545,0.00022438,3]
[362959365,1748536240187,-445.82,0.00022465,2]
[362959367,1748536240196,-530.69,0.00022465,2]
[362959369,1748536240206,-430.0,0.00022465,2]
[362959371,1748536240215,-430.0,0.00022465,2]
[362959373,1748536240224,-430.0,0.00022643,2]
[362959375,1748536240233,-430.0,0.00022643,2]
[362959377,1748536240243,-445.82,0.00022739,2]
[362959379,1748536240253,-275.50182981,0.00022739,2]
[362959381,1748536240262,-430.0,0.00022739,2]
[362959382,1748536240272,-430.0,0.00022917,2]
[362959384,1748536240280,-551.29,0.00022917,2]
[362959386,1748536240290,-445.82,0.00023013,2]
[362959388,1748536240300,-430.0,0.00023013,2]
[362959390,1748536240309,-430.0,0.00023191,2]
[362959392,1748536240318,-445.82,0.00023287,2]
[362959394,1748536240327,-430.0,0.00023287,2]
[362959396,1748536240338,-500.0,0.00023356,2]
[362959398,1748536240348,-207.4,0.00023454,2]
[362959400,1748536240357,-430.0,0.00023465,2]
[362959402,1748536240367,-34113.82,0.000235,7]
[362959404,1748536240375,-787.46,0.000235,7]
[362959406,1748536240385,-445.82,0.00023561,2]
[362959408,1748536240393,-158.66,0.00023561,2]
[362959410,1748536240402,-278.95888249,0.00023582,2]
[362959412,1748536240412,-430.0,0.00023739,2]
[362959414,1748536240421,-445.82,0.00023835,2]
[362959416,1748536240430,-6869.42,0.000239,2]
[362959418,1748536240439,-188.18929524,0.000239,2]
[362959420,1748536240448,-5427.75832385,0.00024,2]
[362959422,1748536240457,-10000.0,0.00024,7]
[362959424,1748536240466,-430.0,0.00024013,2]
[362959425,1748536240475,-200.0,0.00024049,120]
[362959427,1748536240484,-178.75,0.00024109,2]
[362959429,1748536240494,-445.82,0.00024109,2]
[362959431,1748536240503,-153.0,0.00024178,2]
[362959433,1748536240512,-8694.405508,0.00024212,7]
[362959435,1748536240521,-430.0,0.00024287,2]
[362959437,1748536240531,-200.0,0.00024303,120]
[362959439,1748536240540,-445.82,0.00024383,2]
[362959441,1748536240549,-480.957386,0.000245,3]
[362959443,1748536240559,-30231.89504901,0.000245,2]
[362959445,1748536240569,-430.0,0.00024561,2]
[362959447,1748536240579,-20058.02774124,0.000246,2]
[362959449,1748536240589,-300.75750676,0.000246,30]
[362959451,1748536240599,-363.83885346,0.0002465,2]
[362959453,1748536240608,-35829.80574455,0.0002465,30]
[362959455,1748536240618,-12911.96599078,0.0002465,2]
[362959457,1748536240627,-86754.71,0.0002465,2]
[362959459,1748536240637,-357.5,0.00024657,3]
[362959461,1748536240646,-445.82,0.00024657,2]
[362959463,1748536240655,-193.50265271,0.00024658,2]
[362959465,1748536240664,-542.2,0.00024716,15]
[362959467,1748536240673,-961.18280829,0.00024756,2]
[362959469,1748536240682,-12869.8054705,0.00024774,2]
[362959471,1748536240691,-154176.86001175,0.00024799,2]